[Event "Titled Tuesday Blitz May 4 2021"]
[White "Matinian, Nikita"]
[Black "Hess, Robert"]
[WhiteFideId "24129100"]
[BlackFideId "2022036"]
[WhiteElo "2410"]
[BlackElo "2557"]
[Result "0-1"]
[Round "10"]
[TimeControl "180+1"]
[Date "2021.05.04"]
[WhiteClock "0:00:01"]
[BlackClock "0:00:05"]

1. e4 {[%clk 0:03:00]}  g6 {[%clk 0:02:45]} 2. d4 {[%clk 0:03:00]}  Bg7 {[%clk 0:02:46]} 3. Nc3 {[%clk 0:03:00]}  a6 {[%clk 0:02:47]} 4. f4 {[%clk 0:03:00]}  e6 {[%clk 0:02:46]} 5. Nf3 {[%clk 0:03:01]}  Ne7 {[%clk 0:02:47]} 6. h4 {[%clk 0:03:01]}  h5 {[%clk 0:02:25]} 7. f5 {[%clk 0:02:47]}  exf5 {[%clk 0:02:12]} 8. Bg5 {[%clk 0:02:46]}  f6 {[%clk 0:02:02]} 9. Bf4 {[%clk 0:02:41]}  fxe4 {[%clk 0:01:58]} 10. Nxe4 {[%clk 0:02:39]}  d5 {[%clk 0:01:59]} 11. Ng3 {[%clk 0:02:34]}  Nbc6 {[%clk 0:01:55]} 12. c3 {[%clk 0:02:33]}  Bg4 {[%clk 0:01:50]} 13. Bd3 {[%clk 0:02:33]}  Qd7 {[%clk 0:01:50]} 14. Qc2 {[%clk 0:02:22]}  O-O-O {[%clk 0:01:47]} 15. O-O {[%clk 0:02:19]}  g5 {[%clk 0:00:58]} 16. hxg5 {[%clk 0:02:20]}  h4 {[%clk 0:00:58]} 17. Nh1 {[%clk 0:02:08]}  h3 {[%clk 0:00:50]} 18. g3 {[%clk 0:02:05]}  fxg5 {[%clk 0:00:32]} 19. Bxg5 {[%clk 0:01:54]}  Bxf3 {[%clk 0:00:32]} 20. Rxf3 {[%clk 0:01:54]}  h2+ {[%clk 0:00:32]} 21. Kf2 {[%clk 0:01:51]}  Bxd4+ {[%clk 0:00:19]} 22. cxd4 {[%clk 0:01:36]}  Nxd4 {[%clk 0:00:20]} 23. Qc5 {[%clk 0:01:32]}  Nxf3 {[%clk 0:00:20]} 24. Kxf3 {[%clk 0:00:49]}  Rdf8+ {[%clk 0:00:17]} 25. Ke3 {[%clk 0:00:48]}  Nc6 {[%clk 0:00:09]} 26. Bf4 {[%clk 0:00:40]}  Qh3 {[%clk 0:00:05]} 27. Qxd5 {[%clk 0:00:26]}  Kb8 {[%clk 0:00:02]} 28. Qf3 {[%clk 0:00:20]}  Rd8 {[%clk 0:00:01]} 29. Be4 {[%clk 0:00:18]}  Rhe8 {[%clk 0:00:01]} 30. Kf2 {[%clk 0:00:14]}  Nd4 {[%clk 0:00:02]} 31. Qg2 {[%clk 0:00:14]}  Qe6 {[%clk 0:00:02]} 32. Re1 {[%clk 0:00:11]}  Qb6 {[%clk 0:00:03]} 33. Kf1 {[%clk 0:00:08]}  Qb5+ {[%clk 0:00:03]} 34. Kf2 {[%clk 0:00:05]}  Qxb2+ {[%clk 0:00:04]} 35. Kf1 {[%clk 0:00:06]}  Qb5+ {[%clk 0:00:04]} 36. Kf2 {[%clk 0:00:06]}  Ne6 {[%clk 0:00:04]} 37. Re2 {[%clk 0:00:05]}  Nxf4 {[%clk 0:00:04]} 38. gxf4 {[%clk 0:00:06]}  Rd4 {[%clk 0:00:04]} 39. Bf3 {[%clk 0:00:03]}  Rxe2+ {[%clk 0:00:04]} 40. Bxe2 {[%clk 0:00:04]}  Qc5 {[%clk 0:00:04]} 41. Kg3 {[%clk 0:00:02]}  Rd2 {[%clk 0:00:04]} 42. Kxh2 {[%clk 0:00:02]}  Qe3 {[%clk 0:00:04]} 43. Ng3 {[%clk 0:00:02]}  Qxf4 {[%clk 0:00:05]} 44. Kg1 {[%clk 0:00:02]}  Qe3+ {[%clk 0:00:05]} 45. Kh2 {[%clk 0:00:02]}  Ka7 {[%clk 0:00:05]} 46. Kh3 {[%clk 0:00:02]}  Rxa2 {[%clk 0:00:05]} 47. Qf1 {[%clk 0:00:02]}  Ra3 {[%clk 0:00:05]} 48. Qg2 {[%clk 0:00:02]}  b5 {[%clk 0:00:05]} 49. Kh2 {[%clk 0:00:01]}  Qf4 {[%clk 0:00:05]} 50. Qg1+ {[%clk 0:00:01]}  Re3 {[%clk 0:00:05]} 51. Qg2 {[%clk 0:00:02]}  Kb6 {[%clk 0:00:05]} 52. Bd1 {[%clk 0:00:01]}  c5 {[%clk 0:00:05]} 0-1


[Site "https://www.chess.com"]

[Event "Titled Tuesday Blitz May 4 2021"]
[White "Mirzoev, Azer"]
[Black "Mohandesi, Shahin"]
[WhiteFideId "13400304"]
[BlackFideId "12501247"]
[WhiteElo "2525"]
[BlackElo "1993"]
[Result "1-0"]
[Round "10"]
[TimeControl "180+1"]
[Date "2021.05.04"]
[WhiteClock "0:00:07"]
[BlackClock "0:00:01"]

1. d4 {[%clk 0:02:59]}  Nf6 {[%clk 0:03:00]} 2. c4 {[%clk 0:02:59]}  e6 {[%clk 0:03:00]} 3. Nc3 {[%clk 0:02:56]}  Bb4 {[%clk 0:03:00]} 4. Qc2 {[%clk 0:02:56]}  d5 {[%clk 0:03:00]} 5. a3 {[%clk 0:02:55]}  Bxc3+ {[%clk 0:03:00]} 6. Qxc3 {[%clk 0:02:56]}  dxc4 {[%clk 0:03:01]} 7. Qxc4 {[%clk 0:02:54]}  b6 {[%clk 0:03:00]} 8. Bg5 {[%clk 0:02:53]}  Ba6 {[%clk 0:02:59]} 9. Qa4+ {[%clk 0:02:42]}  Qd7 {[%clk 0:02:59]} 10. Qxd7+ {[%clk 0:02:15]}  Nbxd7 {[%clk 0:03:00]} 11. Nf3 {[%clk 0:02:14]}  c5 {[%clk 0:02:58]} 12. Rc1 {[%clk 0:02:14]}  h6 {[%clk 0:02:53]} 13. Bxf6 {[%clk 0:02:11]}  gxf6 {[%clk 0:02:51]} 14. e3 {[%clk 0:02:08]}  Bxf1 {[%clk 0:02:51]} 15. Rxf1 {[%clk 0:02:08]}  Ke7 {[%clk 0:02:50]} 16. dxc5 {[%clk 0:02:05]}  Nxc5 {[%clk 0:02:50]} 17. Ke2 {[%clk 0:02:03]}  e5 {[%clk 0:02:34]} 18. Rc3 {[%clk 0:01:51]}  a5 {[%clk 0:02:30]} 19. Rfc1 {[%clk 0:01:50]}  a4 {[%clk 0:02:30]} 20. Nd2 {[%clk 0:01:50]}  Rad8 {[%clk 0:02:15]} 21. f3 {[%clk 0:01:43]}  Rhg8 {[%clk 0:02:05]} 22. g3 {[%clk 0:01:42]}  h5 {[%clk 0:02:05]} 23. Ne4 {[%clk 0:01:42]}  Nxe4 {[%clk 0:01:57]} 24. fxe4 {[%clk 0:01:42]}  h4 {[%clk 0:01:57]} 25. Rc7+ {[%clk 0:01:38]}  Rd7 {[%clk 0:01:58]} 26. Kf3 {[%clk 0:01:34]}  hxg3 {[%clk 0:01:54]} 27. hxg3 {[%clk 0:01:34]}  Rb8 {[%clk 0:01:10]} 28. R1c6 {[%clk 0:01:25]}  Rxc7 {[%clk 0:01:07]} 29. Rxc7+ {[%clk 0:01:24]}  Ke6 {[%clk 0:01:07]} 30. Ra7 {[%clk 0:01:23]}  b5 {[%clk 0:01:06]} 31. Ra6+ {[%clk 0:01:20]}  Ke7 {[%clk 0:01:05]} 32. Ke2 {[%clk 0:01:11]}  Rc8 {[%clk 0:00:33]} 33. Kd3 {[%clk 0:00:53]}  Rd8+ {[%clk 0:00:08]} 34. Kc3 {[%clk 0:00:52]}  Rd6 {[%clk 0:00:09]} 35. Ra7+ {[%clk 0:00:44]}  Ke6 {[%clk 0:00:07]} 36. Ra5 {[%clk 0:00:41]}  Rc6+ {[%clk 0:00:06]} 37. Kb4 {[%clk 0:00:41]}  Rc2 {[%clk 0:00:05]} 38. Rxb5 {[%clk 0:00:41]}  Rxb2+ {[%clk 0:00:06]} 39. Kxa4 {[%clk 0:00:41]}  Rg2 {[%clk 0:00:05]} 40. Rb3 {[%clk 0:00:38]}  Rxg3 {[%clk 0:00:05]} 41. Kb5 {[%clk 0:00:38]}  Rg4 {[%clk 0:00:02]} 42. a4 {[%clk 0:00:38]}  Rxe4 {[%clk 0:00:02]} 43. a5 {[%clk 0:00:38]}  Rh4 {[%clk 0:00:02]} 44. a6 {[%clk 0:00:37]}  Rh8 {[%clk 0:00:02]} 45. a7 {[%clk 0:00:37]}  f5 {[%clk 0:00:01]} 46. Ra3 {[%clk 0:00:26]}  Ra8 {[%clk 0:00:01]} 47. Kc6 {[%clk 0:00:27]}  f4 {[%clk 0:00:02]} 48. exf4 {[%clk 0:00:19]}  exf4 {[%clk 0:00:02]} 49. Kb7 {[%clk 0:00:19]}  Rxa7+ {[%clk 0:00:02]} 50. Kxa7 {[%clk 0:00:19]}  Kf5 {[%clk 0:00:03]} 51. Kb6 {[%clk 0:00:19]}  Ke4 {[%clk 0:00:03]} 52. Ra4+ {[%clk 0:00:12]}  Ke3 {[%clk 0:00:01]} 53. Kc5 {[%clk 0:00:09]}  f3 {[%clk 0:00:02]} 54. Ra3+ {[%clk 0:00:09]}  Ke4 {[%clk 0:00:01]} 55. Kc4 {[%clk 0:00:07]} 1-0


[Site "https://www.chess.com"]

[Event "Titled Tuesday Blitz May 4 2021"]
[White "Mortazavi, Ali"]
[Black "Djordjevic, Vuk"]
[WhiteFideId "401323"]
[BlackFideId "902098"]
[WhiteElo "2339"]
[BlackElo "2463"]
[Result "0-1"]
[Round "10"]
[TimeControl "180+1"]
[Date "2021.05.04"]
[WhiteClock "0:00:03"]
[BlackClock "0:00:03"]

1. Nf3 {[%clk 0:03:00]}  Nf6 {[%clk 0:03:00]} 2. g3 {[%clk 0:03:00]}  e6 {[%clk 0:03:00]} 3. Bg2 {[%clk 0:03:01]}  d5 {[%clk 0:03:00]} 4. O-O {[%clk 0:03:02]}  Be7 {[%clk 0:03:01]} 5. d3 {[%clk 0:03:03]}  O-O {[%clk 0:03:02]} 6. Nbd2 {[%clk 0:03:03]}  c5 {[%clk 0:03:02]} 7. e4 {[%clk 0:03:04]}  Nc6 {[%clk 0:03:03]} 8. Re1 {[%clk 0:03:05]}  b5 {[%clk 0:03:02]} 9. exd5 {[%clk 0:03:05]}  exd5 {[%clk 0:03:03]} 10. d4 {[%clk 0:03:05]}  Bg4 {[%clk 0:02:56]} 11. dxc5 {[%clk 0:02:59]}  Bxc5 {[%clk 0:02:55]} 12. Nb3 {[%clk 0:02:55]}  Bb6 {[%clk 0:02:52]} 13. h3 {[%clk 0:02:49]}  Bh5 {[%clk 0:02:14]} 14. g4 {[%clk 0:02:36]}  Bg6 {[%clk 0:02:14]} 15. Be3 {[%clk 0:02:35]}  h5 {[%clk 0:01:50]} 16. g5 {[%clk 0:02:25]}  Ne4 {[%clk 0:01:50]} 17. Nbd4 {[%clk 0:02:21]}  Nxd4 {[%clk 0:01:43]} 18. Bxd4 {[%clk 0:02:20]}  Nxg5 {[%clk 0:01:37]} 19. Bxb6 {[%clk 0:02:11]}  Nxf3+ {[%clk 0:01:29]} 20. Qxf3 {[%clk 0:02:09]}  Qxb6 {[%clk 0:01:28]} 21. Qxd5 {[%clk 0:02:07]}  Rad8 {[%clk 0:01:26]} 22. Qg5 {[%clk 0:01:58]}  Bxc2 {[%clk 0:01:19]} 23. Rac1 {[%clk 0:01:52]}  Bg6 {[%clk 0:01:16]} 24. Rc6 {[%clk 0:01:50]}  Qd4 {[%clk 0:01:16]} 25. Qxb5 {[%clk 0:01:36]}  Rb8 {[%clk 0:01:11]} 26. Qd5 {[%clk 0:01:35]}  Qxb2 {[%clk 0:00:17]} 27. Rxg6 {[%clk 0:01:31]}  Rb5 {[%clk 0:00:17]} 28. Qc4 {[%clk 0:01:17]}  Rb4 {[%clk 0:00:18]} 29. Qc5 {[%clk 0:00:53]}  Rb5 {[%clk 0:00:09]} 30. Qc4 {[%clk 0:00:29]}  Rb4 {[%clk 0:00:08]} 31. Qd5 {[%clk 0:00:20]}  Qc3 {[%clk 0:00:08]} 32. Rg3 {[%clk 0:00:17]}  Qxe1+ {[%clk 0:00:07]} 33. Kh2 {[%clk 0:00:18]}  Qe6 {[%clk 0:00:06]} 34. Qxh5 {[%clk 0:00:18]}  Qf6 {[%clk 0:00:07]} 35. Rf3 {[%clk 0:00:15]}  Qd6+ {[%clk 0:00:06]} 36. Rg3 {[%clk 0:00:15]}  Rb6 {[%clk 0:00:06]} 37. Be4 {[%clk 0:00:15]}  g6 {[%clk 0:00:05]} 38. Qh6 {[%clk 0:00:12]}  Qf6 {[%clk 0:00:06]} 39. Kg2 {[%clk 0:00:11]}  Qg7 {[%clk 0:00:06]} 40. Qf4 {[%clk 0:00:10]}  Rf6 {[%clk 0:00:06]} 41. Qg4 {[%clk 0:00:09]}  Qh6 {[%clk 0:00:06]} 42. Bd5 {[%clk 0:00:09]}  Kh7 {[%clk 0:00:05]} 43. Bb3 {[%clk 0:00:06]}  Qf4 {[%clk 0:00:05]} 44. Qe2 {[%clk 0:00:05]}  Rf5 {[%clk 0:00:05]} 45. Rg4 {[%clk 0:00:06]}  Qe5 {[%clk 0:00:05]} 46. Re4 {[%clk 0:00:06]}  Rg5+ {[%clk 0:00:05]} 47. Kf1 {[%clk 0:00:05]}  Qa1+ {[%clk 0:00:04]} 48. Bd1 {[%clk 0:00:03]}  Rd5 {[%clk 0:00:02]} 49. Ke1 {[%clk 0:00:03]}  Rfd8 {[%clk 0:00:02]} 50. Rh4+ {[%clk 0:00:03]}  Kg7 {[%clk 0:00:03]} 0-1


[Site "https://www.chess.com"]

[Event "Titled Tuesday Blitz May 4 2021"]
[White "Najdin, Danil"]
[Black "Luberanski, Jakub"]
[WhiteFideId "4172426"]
[BlackFideId "21830509"]
[WhiteElo "2193"]
[BlackElo "2078"]
[Result "1-0"]
[Round "10"]
[TimeControl "180+1"]
[Date "2021.05.04"]
[WhiteClock "0:00:35"]
[BlackClock "0:00:18"]

1. e4 {[%clk 0:03:00]}  c5 {[%clk 0:03:00]} 2. Nc3 {[%clk 0:02:56]}  e6 {[%clk 0:02:59]} 3. g3 {[%clk 0:02:55]}  Nc6 {[%clk 0:02:59]} 4. Bg2 {[%clk 0:02:54]}  g6 {[%clk 0:03:00]} 5. d3 {[%clk 0:02:54]}  Bg7 {[%clk 0:03:00]} 6. f4 {[%clk 0:02:54]}  d6 {[%clk 0:03:00]} 7. Nf3 {[%clk 0:02:53]}  Nge7 {[%clk 0:03:01]} 8. O-O {[%clk 0:02:52]}  Rb8 {[%clk 0:03:01]} 9. a3 {[%clk 0:02:43]}  O-O {[%clk 0:02:59]} 10. Be3 {[%clk 0:02:41]}  Nd4 {[%clk 0:02:58]} 11. Nh4 {[%clk 0:02:27]}  b5 {[%clk 0:02:49]} 12. Rb1 {[%clk 0:02:27]}  a5 {[%clk 0:02:36]} 13. a4 {[%clk 0:02:22]}  b4 {[%clk 0:02:32]} 14. Ne2 {[%clk 0:02:22]}  Bd7 {[%clk 0:02:19]} 15. b3 {[%clk 0:02:05]}  Nec6 {[%clk 0:02:19]} 16. Nxd4 {[%clk 0:01:58]}  cxd4 {[%clk 0:02:12]} 17. Bd2 {[%clk 0:01:54]}  Ne7 {[%clk 0:02:11]} 18. g4 {[%clk 0:01:33]}  f5 {[%clk 0:01:41]} 19. exf5 {[%clk 0:01:33]}  exf5 {[%clk 0:01:41]} 20. g5 {[%clk 0:01:28]}  Bc6 {[%clk 0:01:38]} 21. Bxc6 {[%clk 0:01:25]}  Nxc6 {[%clk 0:01:39]} 22. Qf3 {[%clk 0:01:25]}  d5 {[%clk 0:01:38]} 23. Rfe1 {[%clk 0:01:24]}  Qd6 {[%clk 0:01:35]} 24. Re2 {[%clk 0:01:20]}  Rbe8 {[%clk 0:01:35]} 25. Rbe1 {[%clk 0:01:20]}  Kf7 {[%clk 0:01:24]} 26. Rxe8 {[%clk 0:01:13]}  Rxe8 {[%clk 0:01:25]} 27. Rxe8 {[%clk 0:01:13]}  Kxe8 {[%clk 0:01:26]} 28. Qe2+ {[%clk 0:01:14]}  Kf7 {[%clk 0:01:23]} 29. Nf3 {[%clk 0:01:13]}  Qc7 {[%clk 0:01:18]} 30. Bc1 {[%clk 0:01:07]}  Nd8 {[%clk 0:01:16]} 31. Kg2 {[%clk 0:00:49]}  Ne6 {[%clk 0:01:16]} 32. Kg3 {[%clk 0:00:46]}  Qd6 {[%clk 0:00:45]} 33. h4 {[%clk 0:00:44]}  Qc7 {[%clk 0:00:44]} 34. h5 {[%clk 0:00:42]}  gxh5 {[%clk 0:00:20]} 35. Nh4 {[%clk 0:00:42]}  Nxg5 {[%clk 0:00:20]} 36. Qxh5+ {[%clk 0:00:41]}  Kg8 {[%clk 0:00:18]} 37. Qxg5 {[%clk 0:00:41]}  Qxc2 {[%clk 0:00:18]} 38. Nxf5 {[%clk 0:00:37]}  Qxd3+ {[%clk 0:00:18]} 39. Kh4 {[%clk 0:00:35]} 1-0


[Site "https://www.chess.com"]

[Event "Titled Tuesday Blitz May 4 2021"]
[White "Nastore, Pavel-Alexandru"]
[Black "Steil-Antoni, Fiona"]
[WhiteFideId "1255002"]
[BlackFideId "4001249"]
[WhiteElo "1809"]
[BlackElo "2059"]
[Result "1-0"]
[Round "10"]
[TimeControl "180+1"]
[Date "2021.05.04"]
[WhiteClock "0:00:18"]
[BlackClock "0:00:01"]

1. e4 {[%clk 0:03:00]}  e5 {[%clk 0:02:59]} 2. Nf3 {[%clk 0:03:00]}  Nc6 {[%clk 0:02:58]} 3. Bb5 {[%clk 0:02:58]}  a6 {[%clk 0:02:58]} 4. Ba4 {[%clk 0:02:51]}  d6 {[%clk 0:02:58]} 5. O-O {[%clk 0:02:51]}  Bd7 {[%clk 0:02:56]} 6. c3 {[%clk 0:02:51]}  Nge7 {[%clk 0:02:55]} 7. d4 {[%clk 0:02:51]}  Ng6 {[%clk 0:02:55]} 8. Re1 {[%clk 0:02:51]}  Be7 {[%clk 0:02:53]} 9. Nbd2 {[%clk 0:02:51]}  h6 {[%clk 0:02:53]} 10. Nf1 {[%clk 0:02:52]}  Bg5 {[%clk 0:02:53]} 11. Be3 {[%clk 0:02:37]}  Bxe3 {[%clk 0:02:47]} 12. fxe3 {[%clk 0:02:16]}  O-O {[%clk 0:02:40]} 13. Bc2 {[%clk 0:02:11]}  Qe7 {[%clk 0:02:18]} 14. Qd2 {[%clk 0:02:03]}  f5 {[%clk 0:01:54]} 15. exf5 {[%clk 0:02:03]}  Bxf5 {[%clk 0:01:55]} 16. e4 {[%clk 0:02:03]}  Bg4 {[%clk 0:01:51]} 17. Qe3 {[%clk 0:01:51]}  Bxf3 {[%clk 0:01:40]} 18. gxf3 {[%clk 0:01:49]}  Nh4 {[%clk 0:01:35]} 19. Nd2 {[%clk 0:01:49]}  Rf4 {[%clk 0:01:33]} 20. Kh1 {[%clk 0:01:46]}  Raf8 {[%clk 0:01:27]} 21. Bd1 {[%clk 0:01:36]}  Qf6 {[%clk 0:01:04]} 22. Be2 {[%clk 0:01:33]}  Ng6 {[%clk 0:00:48]} 23. Rg1 {[%clk 0:01:26]}  Rh4 {[%clk 0:00:45]} 24. d5 {[%clk 0:01:20]}  Nd8 {[%clk 0:00:41]} 25. Rg3 {[%clk 0:01:18]}  Nf4 {[%clk 0:00:39]} 26. Bf1 {[%clk 0:01:10]}  Nf7 {[%clk 0:00:27]} 27. Bg2 {[%clk 0:00:54]}  Ng5 {[%clk 0:00:26]} 28. Rg1 {[%clk 0:00:51]}  Nh5 {[%clk 0:00:18]} 29. Rg4 {[%clk 0:00:47]}  Rxg4 {[%clk 0:00:17]} 30. fxg4 {[%clk 0:00:43]}  Nf4 {[%clk 0:00:17]} 31. Bf1 {[%clk 0:00:40]}  Nh7 {[%clk 0:00:15]} 32. Nf3 {[%clk 0:00:35]}  Qg6 {[%clk 0:00:12]} 33. c4 {[%clk 0:00:24]}  Nf6 {[%clk 0:00:12]} 34. Nd2 {[%clk 0:00:23]}  Nxg4 {[%clk 0:00:09]} 35. Qg3 {[%clk 0:00:23]}  h5 {[%clk 0:00:09]} 36. h3 {[%clk 0:00:23]}  Qh6 {[%clk 0:00:04]} 37. hxg4 {[%clk 0:00:22]}  hxg4+ {[%clk 0:00:04]} 38. Qh2 {[%clk 0:00:22]}  Qg5 {[%clk 0:00:04]} 39. Be2 {[%clk 0:00:21]}  Nxe2 {[%clk 0:00:02]} 40. Qxe2 {[%clk 0:00:21]}  Rf4 {[%clk 0:00:01]} 41. Nf3 {[%clk 0:00:19]}  Qh6+ {[%clk 0:00:01]} 42. Nh2 {[%clk 0:00:19]}  Qf6 {[%clk 0:00:01]} 43. Nxg4 {[%clk 0:00:18]} 1-0


[Site "https://www.chess.com"]

[Event "Titled Tuesday Blitz May 4 2021"]
[White "Navalgund, Niranjan"]
[Black "Yeremyan, Alen"]
[WhiteFideId "5030854"]
[BlackFideId "13308998"]
[WhiteElo "2290"]
[BlackElo "2158"]
[Result "1-0"]
[Round "10"]
[TimeControl "180+1"]
[Date "2021.05.04"]
[WhiteClock "0:01:38"]
[BlackClock "0:02:00"]

1. e4 {[%clk 0:03:00]}  Nf6 {[%clk 0:03:00]} 2. e5 {[%clk 0:03:00]}  Nd5 {[%clk 0:03:01]} 3. Nc3 {[%clk 0:03:01]}  Nb6 {[%clk 0:03:00]} 4. h4 {[%clk 0:03:00]}  d6 {[%clk 0:03:00]} 5. Nf3 {[%clk 0:03:00]}  Nc6 {[%clk 0:02:59]} 6. Qe2 {[%clk 0:02:58]}  Bg4 {[%clk 0:02:59]} 7. exd6 {[%clk 0:02:58]}  cxd6 {[%clk 0:02:59]} 8. Qe3 {[%clk 0:02:56]}  d5 {[%clk 0:02:56]} 9. Bb5 {[%clk 0:02:55]}  a6 {[%clk 0:02:52]} 10. Bxc6+ {[%clk 0:02:53]}  bxc6 {[%clk 0:02:53]} 11. Ne5 {[%clk 0:02:53]}  Bd7 {[%clk 0:02:42]} 12. Qf3 {[%clk 0:02:50]}  Be6 {[%clk 0:02:33]} 13. Nxc6 {[%clk 0:02:49]}  Qc7 {[%clk 0:02:34]} 14. Nd4 {[%clk 0:02:48]}  Bd7 {[%clk 0:02:34]} 15. O-O {[%clk 0:02:34]}  e6 {[%clk 0:02:35]} 16. Re1 {[%clk 0:02:30]}  Be7 {[%clk 0:02:35]} 17. d3 {[%clk 0:02:21]}  O-O {[%clk 0:02:33]} 18. Nf5 {[%clk 0:02:19]}  Bf6 {[%clk 0:02:27]} 19. Bf4 {[%clk 0:02:17]}  Qb7 {[%clk 0:02:24]} 20. Nh6+ {[%clk 0:02:02]}  Kh8 {[%clk 0:02:22]} 21. Ng4 {[%clk 0:01:59]}  Bxc3 {[%clk 0:02:14]} 22. bxc3 {[%clk 0:01:58]}  f6 {[%clk 0:02:15]} 23. Bd6 {[%clk 0:01:57]}  Rf7 {[%clk 0:02:03]} 24. Ne5 {[%clk 0:01:57]}  Bc6 {[%clk 0:02:03]} 25. Nxf7+ {[%clk 0:01:51]}  Qxf7 {[%clk 0:02:04]} 26. Rab1 {[%clk 0:01:51]}  Nd7 {[%clk 0:02:04]} 27. d4 {[%clk 0:01:44]}  Bb5 {[%clk 0:02:01]} 28. Rb4 {[%clk 0:01:40]}  Nb6 {[%clk 0:01:59]} 29. Bc5 {[%clk 0:01:39]}  Nc4 {[%clk 0:02:00]} 30. a4 {[%clk 0:01:37]}  Bc6 {[%clk 0:02:00]} 31. Rxc4 {[%clk 0:01:38]} 1-0


[Site "https://www.chess.com"]

[Event "Titled Tuesday Blitz May 4 2021"]
[White "Necula, Iulian"]
[Black "Bongo Akanga Ndjila, Barthelemy"]
[WhiteFideId "1232380"]
[BlackFideId "10609431"]
[WhiteElo "1776"]
[BlackElo "1803"]
[Result "1/2-1/2"]
[Round "10"]
[TimeControl "180+1"]
[Date "2021.05.04"]
[WhiteClock "0:00:47"]
[BlackClock "0:00:01"]

1. f4 {[%clk 0:03:00]}  f5 {[%clk 0:02:57]} 2. Nf3 {[%clk 0:03:00]}  Nf6 {[%clk 0:02:58]} 3. g3 {[%clk 0:03:01]}  g6 {[%clk 0:02:58]} 4. Bg2 {[%clk 0:03:02]}  Bg7 {[%clk 0:02:59]} 5. O-O {[%clk 0:03:03]}  O-O {[%clk 0:02:59]} 6. d3 {[%clk 0:03:04]}  d6 {[%clk 0:02:59]} 7. c3 {[%clk 0:03:05]}  Qe8 {[%clk 0:02:59]} 8. Qc2 {[%clk 0:03:06]}  e5 {[%clk 0:02:59]} 9. Nbd2 {[%clk 0:03:07]}  Na6 {[%clk 0:02:57]} 10. fxe5 {[%clk 0:03:05]}  dxe5 {[%clk 0:02:56]} 11. e4 {[%clk 0:03:06]}  f4 {[%clk 0:02:54]} 12. Nc4 {[%clk 0:03:04]}  Nh5 {[%clk 0:02:53]} 13. gxf4 {[%clk 0:03:03]}  exf4 {[%clk 0:02:52]} 14. Qb3 {[%clk 0:03:01]}  Kh8 {[%clk 0:02:45]} 15. a4 {[%clk 0:02:59]}  Nc5 {[%clk 0:02:43]} 16. Qc2 {[%clk 0:02:59]}  a5 {[%clk 0:02:39]} 17. Bd2 {[%clk 0:02:51]}  Bg4 {[%clk 0:02:31]} 18. Rae1 {[%clk 0:02:44]}  Qxa4 {[%clk 0:02:14]} 19. Qb1 {[%clk 0:02:19]}  Nb3 {[%clk 0:02:11]} 20. Qc2 {[%clk 0:02:06]}  Qb5 {[%clk 0:02:10]} 21. Na3 {[%clk 0:02:05]}  Qb6+ {[%clk 0:02:01]} 22. d4 {[%clk 0:02:04]}  Nxd2 {[%clk 0:01:58]} 23. Qxd2 {[%clk 0:02:04]}  Rad8 {[%clk 0:01:52]} 24. Nc4 {[%clk 0:02:03]}  Qb5 {[%clk 0:01:35]} 25. Nce5 {[%clk 0:01:59]}  Bxf3 {[%clk 0:01:25]} 26. Nxf3 {[%clk 0:01:59]}  c5 {[%clk 0:01:18]} 27. d5 {[%clk 0:01:58]}  c4 {[%clk 0:01:16]} 28. Nd4 {[%clk 0:01:55]}  Qb6 {[%clk 0:01:12]} 29. Kh1 {[%clk 0:01:54]}  Qf6 {[%clk 0:01:02]} 30. e5 {[%clk 0:01:53]}  Qh4 {[%clk 0:01:02]} 31. Kg1 {[%clk 0:01:50]}  Qg4 {[%clk 0:00:55]} 32. Qe2 {[%clk 0:01:41]}  f3 {[%clk 0:00:46]} 33. Rxf3 {[%clk 0:01:34]}  Rxf3 {[%clk 0:00:44]} 34. Qxf3 {[%clk 0:01:31]}  Qg5 {[%clk 0:00:37]} 35. Qe3 {[%clk 0:01:21]}  Qg4 {[%clk 0:00:31]} 36. Qe2 {[%clk 0:01:12]}  Qh4 {[%clk 0:00:18]} 37. Ne6 {[%clk 0:01:08]}  Re8 {[%clk 0:00:14]} 38. Nxg7 {[%clk 0:01:07]}  Nxg7 {[%clk 0:00:15]} 39. e6 {[%clk 0:01:07]}  Nf5 {[%clk 0:00:15]} 40. Qe5+ {[%clk 0:01:06]}  Kg8 {[%clk 0:00:14]} 41. d6 {[%clk 0:01:04]}  Nxd6 {[%clk 0:00:13]} 42. Qxd6 {[%clk 0:01:03]}  Qxe1+ {[%clk 0:00:12]} 43. Bf1 {[%clk 0:01:03]}  Qxe6 {[%clk 0:00:12]} 44. Qd4 {[%clk 0:00:59]}  Qe3+ {[%clk 0:00:11]} 45. Qxe3 {[%clk 0:00:59]}  Rxe3 {[%clk 0:00:12]} 46. Bxc4+ {[%clk 0:00:59]}  Kg7 {[%clk 0:00:10]} 47. Bd5 {[%clk 0:00:59]}  Re5 {[%clk 0:00:10]} 48. c4 {[%clk 0:00:59]}  Re2 {[%clk 0:00:10]} 49. b3 {[%clk 0:01:00]}  Rb2 {[%clk 0:00:10]} 50. Bxb7 {[%clk 0:00:59]}  Rxb3 {[%clk 0:00:10]} 51. Bc6 {[%clk 0:00:58]}  Rb4 {[%clk 0:00:08]} 52. c5 {[%clk 0:00:56]}  a4 {[%clk 0:00:08]} 53. Bd5 {[%clk 0:00:54]}  a3 {[%clk 0:00:08]} 54. c6 {[%clk 0:00:55]}  Rb1+ {[%clk 0:00:07]} 55. Kf2 {[%clk 0:00:54]}  Rc1 {[%clk 0:00:08]} 56. Ke3 {[%clk 0:00:53]}  Rxc6 {[%clk 0:00:07]} 57. h4 {[%clk 0:00:48]}  Rc5 {[%clk 0:00:05]} 58. Ba2 {[%clk 0:00:47]}  Rc2 {[%clk 0:00:05]} 59. Bb3 {[%clk 0:00:46]}  a2 {[%clk 0:00:04]} 60. Bxc2 {[%clk 0:00:46]}  a1=Q {[%clk 0:00:03]} 61. Bd3 {[%clk 0:00:47]}  Kh6 {[%clk 0:00:01]} 62. h5 {[%clk 0:00:48]}  gxh5 {[%clk 0:00:01]} 63. Kf4 {[%clk 0:00:47]} 1/2-1/2


[Site "https://www.chess.com"]

[Event "Titled Tuesday Blitz May 4 2021"]
[White "Niyazgulova, Marina"]
[Black "Garcia, Gabriel Gonzaga"]
[WhiteFideId "24142573"]
[BlackFideId "2138956"]
[WhiteElo "2087"]
[BlackElo "2240"]
[Result "0-1"]
[Round "10"]
[TimeControl "180+1"]
[Date "2021.05.04"]
[WhiteClock "0:00:26"]
[BlackClock "0:00:43"]

1. d4 {[%clk 0:03:00]}  Nf6 {[%clk 0:02:59]} 2. c4 {[%clk 0:03:00]}  e6 {[%clk 0:02:59]} 3. Nc3 {[%clk 0:02:59]}  Bb4 {[%clk 0:02:59]} 4. Qc2 {[%clk 0:02:59]}  d5 {[%clk 0:02:59]} 5. Nf3 {[%clk 0:02:57]}  O-O {[%clk 0:02:57]} 6. Bg5 {[%clk 0:02:57]}  c5 {[%clk 0:02:56]} 7. e3 {[%clk 0:02:55]}  Nbd7 {[%clk 0:02:51]} 8. a3 {[%clk 0:02:51]}  Qa5 {[%clk 0:02:50]} 9. Bxf6 {[%clk 0:02:48]}  Nxf6 {[%clk 0:02:51]} 10. Bd3 {[%clk 0:02:48]}  dxc4 {[%clk 0:02:49]} 11. Bxc4 {[%clk 0:02:45]}  cxd4 {[%clk 0:02:33]} 12. Nxd4 {[%clk 0:02:38]}  Bxc3+ {[%clk 0:02:33]} 13. Qxc3 {[%clk 0:02:35]}  Qxc3+ {[%clk 0:02:32]} 14. bxc3 {[%clk 0:02:36]}  Bd7 {[%clk 0:02:31]} 15. Rc1 {[%clk 0:02:14]}  Rfc8 {[%clk 0:02:28]} 16. Bd3 {[%clk 0:02:10]}  Rc7 {[%clk 0:02:16]} 17. Kd2 {[%clk 0:01:54]}  Rac8 {[%clk 0:02:11]} 18. Rc2 {[%clk 0:01:54]}  Ba4 {[%clk 0:02:11]} 19. Rcc1 {[%clk 0:01:52]}  a6 {[%clk 0:02:08]} 20. e4 {[%clk 0:01:17]}  e5 {[%clk 0:01:54]} 21. Nf5 {[%clk 0:01:11]}  Rd8 {[%clk 0:01:32]} 22. Ke2 {[%clk 0:01:09]}  Rcd7 {[%clk 0:01:32]} 23. Bb1 {[%clk 0:00:56]}  Rd2+ {[%clk 0:01:08]} 24. Kf3 {[%clk 0:00:56]}  Bd1+ {[%clk 0:01:08]} 25. Kg3 {[%clk 0:00:43]}  Nh5+ {[%clk 0:01:05]} 26. Kh4 {[%clk 0:00:40]}  Nf4 {[%clk 0:01:01]} 27. Ne3 {[%clk 0:00:39]}  Ba4 {[%clk 0:00:53]} 28. f3 {[%clk 0:00:35]}  R8d6 {[%clk 0:00:47]} 29. g4 {[%clk 0:00:27]}  Rh6+ {[%clk 0:00:45]} 30. Kg5 {[%clk 0:00:27]}  f6+ {[%clk 0:00:43]} 31. Kf5 {[%clk 0:00:26]}  Bd7# {[%clk 0:00:43]} 0-1


[Site "https://www.chess.com"]